bitfinex/quotes_SOLUSD_20241107
["timestamp","ask_amount","ask_price","bid_price","bid_amount"]
[1730989990021,15.22570292,188.2,188.19,0.1]
[1730989995299,9.75792701,188.2,188.19,0.1]
[1730989997719,15.2491886,188.2,188.19,0.1]
[1730989998586,36.9729772,188.2,188.19,0.1]
[1730989999015,77.2138612,188.2,188.19,0.1]
[1730990000195,61.9646726,188.2,188.19,0.1]
[1730990000813,77.2138612,188.2,188.19,0.1]
[1730990002010,23.776884,188.19,188.14,0.1]
[1730990002215,23.776884,188.19,188.09,160.6]
[1730990002216,15.2491886,188.15,188.13,0.1]
[1730990002395,15.2491886,188.14,188.11,0.1]
[1730990002596,15.2491886,188.12,188.11,0.1]
[1730990003732,23.776884,188.11,188.06,0.1]
[1730990004008,23.776884,188.11,188.0,6.3861]
[1730990004009,15.2491886,188.07,188.02,0.1]
[1730990004211,15.2491886,188.04,188.03,0.1]
[1730990005419,15.2491886,188.05,188.04,0.1]
[1730990006293,15.2491886,188.06,188.05,0.1]
[1730990006819,15.2491886,188.07,188.06,0.1]
[1730990008314,15.2491886,188.07,188.05,0.1]
[1730990008494,15.2491886,188.06,188.05,0.1]
[1730990009998,15.2491886,188.06,188.04,0.1]
[1730990010199,15.2491886,188.06,188.05,0.1]
[1730990011238,15.2491886,188.06,188.02,0.1]
[1730990011519,15.2491886,188.03,188.0,0.1]
[1730990011729,15.2491886,188.01,188.0,0.1]
[1730990012030,30.4983772,188.01,187.98,0.1]
[1730990012198,15.2491886,188.01,188.0,0.1]
[1730990012925,15.1435,188.05,188.04,0.1]
[1730990013426,30.3926886,188.05,188.04,0.1]
[1730990014810,23.776884,188.04,188.0,0.1]
[1730990015003,15.2491886,188.01,188.0,0.1]
[1730990015502,39.0260726,188.01,187.98,0.1]
[1730990015718,15.2491886,187.99,187.98,0.1]
[1730990016795,39.0260726,187.99,187.98,0.1]
[1730990017196,39.0260726,187.99,187.94,0.1]
[1730990017409,15.2491886,187.95,187.93,0.1]
[1730990017622,15.2491886,187.94,187.93,0.1]
[1730990017999,15.2491886,187.94,187.92,0.1]
[1730990018214,15.2491886,187.93,187.92,0.1]
[1730990018415,15.2491886,187.93,187.91,0.1]
[1730990018621,15.2491886,187.92,187.9,0.1]
[1730990018824,15.2491886,187.91,187.89,0.1]
[1730990019003,15.2491886,187.9,187.89,0.1]
[1730990021732,15.2491886,187.9,187.88,0.1]
[1730990021904,15.2491886,187.89,187.86,0.1]
[1730990022223,15.2491886,187.89,187.77,12.5926]
[1730990022224,15.2491886,187.88,187.87,0.1]
[1730990028524,15.2491886,187.88,187.85,0.1]
[1730990028750,15.2491886,187.88,187.82,0.1]
[1730990028751,15.2491886,187.86,187.82,0.1]
[1730990028916,15.2491886,187.83,187.82,0.1]
[1730990029613,30.4983772,187.83,187.82,0.1]
[1730990029811,30.4983772,187.83,187.78,0.1]
[1730990030111,21.8100886,187.83,187.82,0.1]
[1730990031116,37.0592772,187.83,187.71,0.5768805]
[1730990031307,15.2491886,187.73,187.71,0.5768805]
[1730990032220,15.2491886,187.72,187.71,0.5768805]
[1730990032513,15.2491886,187.72,187.71,0.0768805]
[1730990034328,0.2,187.78,187.71,0.0768805]
[1730990034632,15.2491886,187.72,187.71,0.0768805]
[1730990035738,15.2491886,187.73,187.71,0.0768805]
[1730990036846,15.2491886,187.74,187.71,0.0768805]
[1730990037048,15.2491886,187.75,187.71,0.0768805]
[1730990037251,15.2491886,187.74,187.71,0.0768805]
[1730990037541,15.2491886,187.72,187.71,0.0768805]
[1730990039518,15.4746786,187.72,187.71,0.0768805]
[1730990039741,15.4746786,187.72,187.54,14.09122672]
[1730990039742,0.22549,187.7,187.58,15.2491886]
[1730990039946,15.2491886,187.64,187.58,15.2491886]
[1730990040145,15.2491886,187.63,187.57,15.2491886]
[1730990040327,15.2491886,187.61,187.55,15.2491886]
[1730990041036,15.2491886,187.65,187.58,15.2491886]
[1730990041432,15.2491886,187.65,187.59,15.2491886]
[1730990041825,15.2491886,187.64,187.58,15.2491886]
[1730990042456,15.2491886,187.62,187.53,0.1]
[1730990042654,15.2491886,187.62,187.56,15.2491886]
[1730990042823,15.2491886,187.61,187.55,15.2491886]
[1730990043534,15.2491886,187.6,187.54,15.2491886]
[1730990043725,15.2491886,187.6,187.53,15.2491886]
[1730990043919,15.2491886,187.61,187.55,15.2491886]
[1730990044443,15.2491886,187.6,187.53,15.2491886]
[1730990044831,15.2491886,187.55,187.52,0.5768805]
[1730990045751,15.2491886,187.56,187.52,0.5768805]
[1730990046419,15.2491886,187.57,187.52,0.5768805]
[1730990047148,15.2491886,187.59,187.52,15.8260691]
[1730990047344,15.2491886,187.58,187.52,0.5768805]
[1730990047645,15.2491886,187.58,187.52,15.8260691]
[1730990048020,15.2491886,187.57,187.52,0.5768805]
[1730990048644,15.2491886,187.53,187.52,0.5768805]
[1730990050029,41.5410786,187.53,187.52,0.5768805]
[1730990051353,65.3179626,187.53,187.52,0.5768805]
[1730990051929,41.5410786,187.53,187.52,0.5768805]
[1730990052470,41.4410786,187.53,187.52,0.5768805]
[1730990052758,41.3155886,187.53,187.52,0.5768805]
[1730990053639,65.2179626,187.53,187.52,0.5768805]
[1730990053838,65.3179626,187.53,187.52,0.5768805]
[1730990054133,0.22549,187.47,187.35,21.6352886]
[1730990054339,0.22549,187.47,187.34,0.1]
[1730990054340,15.2491886,187.42,187.36,15.2491886]
[1730990055248,15.2491886,187.43,187.37,15.2491886]
[1730990055451,15.2491886,187.44,187.37,15.2491886]
[1730990056052,15.2491886,187.4,187.34,20.0]
[1730990056359,15.2491886,187.4,187.34,35.2491886]
[1730990056557,15.2491886,187.41,187.35,15.2491886]
[1730990056859,15.2491886,187.41,187.34,20.0]
[1730990056860,15.2491886,187.41,187.34,0.12549]
[1730990057038,15.2491886,187.4,187.34,15.2491886]
[1730990057358,15.2491886,187.41,187.35,15.2491886]
[1730990057937,15.2491886,187.39,187.33,15.8260691]
[1730990058258,15.2491886,187.4,187.34,15.2491886]
[1730990058443,15.2491886,187.4,187.33,15.8260691]
[1730990058650,0.12549,187.44,187.33,15.8260691]
[1730990058651,15.2491886,187.39,187.33,15.8260691]
[1730990058836,15.2491886,187.38,187.33,0.5768805]
[1730990059160,15.2491886,187.35,187.33,0.5768805]
[1730990059460,15.2491886,187.34,187.33,0.5768805]
[1730990059834,15.2491886,187.35,187.33,0.5768805]
[1730990060057,15.2491886,187.37,187.33,0.5768805]
[1730990060357,15.2491886,187.38,187.33,0.5768805]
[1730990060664,15.2491886,187.41,187.35,15.2491886]
[1730990060845,15.2491886,187.42,187.36,15.2491886]
[1730990061046,15.2491886,187.41,187.35,15.2491886]
[1730990061243,15.2491886,187.41,187.34,15.2491886]
[1730990061437,24.60306003,187.41,187.34,24.60306003]
[1730990061831,24.60306003,187.43,187.36,24.60306003]
[1730990062151,24.60306003,187.43,187.37,24.60306003]
[1730990062738,24.60306003,187.45,187.39,24.60306003]
[1730990062938,24.60306003,187.47,187.41,24.60306003]
[1730990063154,24.60306003,187.47,187.36,0.2]
[1730990063155,24.60306003,187.48,187.42,24.60306003]
[1730990063440,24.60306003,187.49,187.43,24.60306003]
[1730990063657,40.46056003,187.5,187.44,24.60306003]
[1730990063869,24.60306003,187.51,187.45,24.60306003]
[1730990064439,24.60306003,187.5,187.44,24.60306003]
[1730990064759,24.60306003,187.47,187.41,24.60306003]
[1730990064935,24.60306003,187.45,187.39,24.60306003]
[1730990065134,6.2237,187.49,187.38,24.60306003]
[1730990065135,24.60306003,187.44,187.38,24.60306003]
[1730990065646,24.60306003,187.46,187.39,24.60306003]
[1730990066155,24.60306003,187.41,187.33,0.5768805]
[1730990066458,24.60306003,187.37,187.33,0.5768805]
[1730990066758,24.60306003,187.38,187.33,0.5768805]
[1730990066947,24.60306003,187.36,187.33,0.5768805]
[1730990067148,24.60306003,187.35,187.33,0.5768805]
[1730990067659,24.60306003,187.34,187.33,0.5768805]
[1730990068375,24.60306003,187.36,187.33,0.5768805]
[1730990068543,24.60306003,187.37,187.33,0.5768805]
[1730990068863,24.60306003,187.36,187.33,0.5768805]
[1730990069963,24.60306003,187.38,187.33,0.5768805]
[1730990070257,24.60306003,187.36,187.33,0.5768805]
[1730990070455,24.60306003,187.37,187.33,0.5768805]
[1730990070658,24.60306003,187.39,187.33,25.17994053]
[1730990070863,24.60306003,187.4,187.33,25.17994053]
[1730990071159,24.60306003,187.37,187.33,0.5768805]
[1730990071346,24.60306003,187.36,187.33,0.5768805]
[1730990071669,24.60306003,187.34,187.33,0.5768805]
[1730990072447,24.60306003,187.35,187.33,0.5768805]
[1730990072645,24.60306003,187.34,187.33,0.5768805]
[1730990074046,24.60306003,187.36,187.33,0.5768805]
[1730990074452,24.60306003,187.37,187.33,0.5768805]
[1730990074756,24.60306003,187.38,187.33,0.5768805]
[1730990075157,24.60306003,187.34,187.33,0.5768805]
[1730990075751,24.60306003,187.37,187.33,0.5768805]
[1730990075955,24.60306003,187.38,187.33,0.5768805]
[1730990076549,24.60306003,187.39,187.33,25.17994053]
[1730990077067,24.60306003,187.38,187.33,0.5768805]
[1730990077745,24.60306003,187.36,187.33,0.5768805]
[1730990077950,0.22549,187.43,187.33,0.5768805]
[1730990077951,24.60306003,187.37,187.33,0.5768805]
[1730990078856,24.60306003,187.35,187.33,0.5768805]
[1730990079057,24.60306003,187.37,187.33,0.5768805]
[1730990079257,24.60306003,187.39,187.33,0.5768805]
[1730990079451,22.2802,187.44,187.34,24.60306003]
[1730990079452,24.60306003,187.4,187.34,24.60306003]
[1730990079664,24.60306003,187.43,187.37,24.60306003]
[1730990080071,24.60306003,187.42,187.36,24.60306003]
[1730990080947,24.60306003,187.43,187.37,24.60306003]
[1730990081354,40.46766003,187.44,187.38,24.60306003]
[1730990081574,24.60306003,187.45,187.39,24.60306003]
[1730990081776,24.60306003,187.46,187.4,24.60306003]
[1730990081953,40.44826003,187.48,187.41,24.60306003]
[1730990082360,24.60306003,187.47,187.41,24.60306003]
[1730990082881,6.539,187.51,187.43,24.60306003]
[1730990082882,24.60306003,187.49,187.43,24.60306003]
[1730990083266,24.60306003,187.48,187.42,24.60306003]
[1730990083466,24.60306003,187.49,187.43,24.60306003]
[1730990083682,31.14206003,187.51,187.45,24.60306003]
[1730990083979,16.4182,187.53,187.46,24.60306003]
[1730990084152,41.02126003,187.53,187.47,24.60306003]
[1730990084357,24.60306003,187.54,187.48,24.60306003]
[1730990084558,24.60306003,187.55,187.49,24.60306003]
[1730990084775,24.60306003,187.55,187.45,0.1]
[1730990084776,24.60306003,187.55,187.5,24.60306003]
[1730990085085,24.60306003,187.54,187.48,24.60306003]
[1730990085857,24.60306003,187.55,187.49,24.60306003]
[1730990086186,39.96766003,187.57,187.51,24.60306003]
[1730990086359,39.96766003,187.57,187.47,24.60306003]
[1730990086360,15.3646,187.57,187.52,24.60306003]
[1730990087159,24.60306003,187.56,187.5,24.60306003]
[1730990087877,39.96766003,187.57,187.51,24.60306003]
[1730990088261,15.3646,187.57,187.52,24.60306003]
[1730990088583,24.60306003,187.6,187.54,24.60306003]
[1730990089173,6.5533,187.61,187.56,24.60306003]
[1730990089480,26.42874975,187.76,187.6,24.60306003]
[1730990089481,46.46756003,187.67,187.6,24.60306003]
[1730990089679,21.8645,187.67,187.62,24.60306003]
[1730990089884,24.60306003,187.66,187.6,24.60306003]
[1730990090063,21.8645,187.67,187.56,160.6]
[1730990090064,24.60306003,187.64,187.58,24.60306003]
[1730990090865,24.60306003,187.62,187.56,24.60306003]
[1730990091461,24.60306003,187.63,187.57,24.60306003]
[1730990091660,24.60306003,187.64,187.58,24.60306003]
[1730990092285,24.60306003,187.66,187.6,24.60306003]
[1730990092476,24.60306003,187.65,187.58,24.60306003]
[1730990092873,24.60306003,187.65,187.59,24.60306003]
[1730990093390,24.60306003,187.62,187.56,24.60306003]
[1730990093885,24.60306003,187.63,187.56,24.60306003]
[1730990094279,24.60306003,187.63,187.57,24.60306003]
[1730990094881,24.60306003,187.61,187.55,24.60306003]
[1730990095387,24.60306003,187.65,187.47,191.48076003]
[1730990095388,24.60306003,187.6,187.54,24.60306003]
[1730990096166,24.60306003,187.61,187.54,24.60306003]
[1730990097494,24.60306003,187.62,187.56,24.60306003]
[1730990098572,16.2513,187.57,187.43,0.2]
[1730990098775,16.2513,187.57,187.49,24.60306003]
[1730990098776,24.60306003,187.55,187.49,24.60306003]
[1730990098987,24.60306003,187.56,187.5,24.60306003]
[1730990099991,40.85436003,187.57,187.51,24.60306003]
[1730990100168,24.60306003,187.56,187.5,24.60306003]
[1730990100496,16.2513,187.57,187.51,24.60306003]
[1730990100668,16.2513,187.57,187.46,0.12549]
[1730990100669,16.2513,187.57,187.52,24.60306003]
[1730990100866,24.60306003,187.54,187.4,0.1]
[1730990101171,24.60306003,187.52,187.46,24.60306003]
[1730990101368,24.60306003,187.52,187.45,24.60306003]
[1730990101587,24.60306003,187.52,187.43,24.60306003]
[1730990101588,24.60306003,187.49,187.43,24.60306003]
[1730990101969,24.60306003,187.48,187.42,24.60306003]
[1730990102197,24.60306003,187.46,187.4,24.10306003]
[1730990102572,24.60306003,187.44,187.38,24.60306003]
[1730990103082,24.60306003,187.45,187.39,24.60306003]
[1730990103379,20.0,187.46,187.35,24.60306003]
[1730990103380,24.60306003,187.41,187.35,24.60306003]
[1730990103580,24.60306003,187.42,187.36,24.60306003]
[1730990104400,24.60306003,187.44,187.38,24.60306003]
[1730990104699,24.60306003,187.43,187.37,24.60306003]
[1730990104990,24.60306003,187.44,187.38,24.60306003]
[1730990105179,20.0,187.46,187.4,24.60306003]
[1730990105378,15.8601,187.47,187.42,24.60306003]
[1730990106194,24.60306003,187.46,187.4,24.60306003]
[1730990106579,24.60306003,187.45,187.39,24.60306003]
[1730990106774,24.60306003,187.46,187.4,24.60306003]
[1730990107176,24.60306003,187.44,187.38,24.60306003]
[1730990108101,24.60306003,187.46,187.4,24.60306003]
[1730990108402,15.8601,187.47,187.42,24.60306003]
[1730990108583,24.60306003,187.49,187.43,24.60306003]
[1730990108895,24.60306003,187.51,187.45,24.60306003]
[1730990109406,24.60306003,187.51,187.39,0.1]
[1730990109407,47.40856003,187.52,187.4,0.12549]
[1730990109577,47.40856003,187.52,187.41,24.60306003]
[1730990109578,24.60306003,187.47,187.41,24.60306003]
[1730990110108,24.60306003,187.46,187.4,24.60306003]
[1730990110410,24.60306003,187.44,187.38,24.60306003]
[1730990110895,24.60306003,187.45,187.39,24.60306003]
[1730990111206,24.60306003,187.46,187.4,24.60306003]
[1730990111790,24.60306003,187.47,187.4,24.60306003]
[1730990111992,24.60306003,187.47,187.41,24.60306003]
[1730990112201,23.902374,187.51,187.34,43.902374]
[1730990112202,24.60306003,187.46,187.4,24.60306003]
[1730990112402,24.60306003,187.47,187.41,24.60306003]
[1730990113104,24.60306003,187.46,187.4,24.60306003]
[1730990114192,24.60306003,187.47,187.41,24.60306003]
[1730990114687,22.8055,187.52,187.42,24.60306003]
[1730990114688,24.60306003,187.49,187.42,24.60306003]
[1730990114890,24.60306003,187.5,187.44,24.60306003]
[1730990115093,24.60306003,187.51,187.45,24.60306003]
[1730990115412,47.40856003,187.52,187.46,24.60306003]
[1730990115613,22.8055,187.52,187.47,24.60306003]
[1730990116097,16.3151,187.52,187.49,24.60306003]
[1730990116291,24.60306003,187.55,187.49,24.60306003]
[1730990116589,6.1639,187.56,187.52,24.60306003]
[1730990117410,6.1639,187.56,187.47,185.30306003]
[1730990117411,39.99406003,187.57,187.51,24.60306003]
[1730990117607,24.60306003,187.56,187.5,24.60306003]
[1730990117808,15.391,187.57,187.49,24.60306003]
[1730990117809,24.60306003,187.55,187.49,24.60306003]
[1730990118688,24.60306003,187.54,187.48,24.60306003]
[1730990119014,24.60306003,187.51,187.45,24.60306003]
[1730990119207,24.70306003,187.56,187.38,30.62946003]
[1730990119208,24.60306003,187.48,187.42,24.60306003]
[1730990119703,24.60306003,187.5,187.44,24.60306003]
[1730990120086,24.60306003,187.49,187.43,24.60306003]
[1730990120291,24.60306003,187.49,187.42,24.60306003]
[1730990120493,24.60306003,187.48,187.42,24.60306003]
[1730990120693,6.6116,187.5,187.44,24.60306003]
[1730990120694,31.21466003,187.5,187.44,24.60306003]
[1730990121220,24.60306003,187.52,187.46,24.60306003]
[1730990121395,24.60306003,187.53,187.47,24.60306003]
[1730990122107,6.6116,187.54,187.49,24.60306003]
[1730990122314,24.60306003,187.55,187.49,24.60306003]
[1730990122609,24.60306003,187.52,187.46,24.60306003]
[1730990123115,24.60306003,187.53,187.47,24.60306003]
[1730990123316,24.60306003,187.52,187.46,24.60306003]
[1730990123509,24.60306003,187.5,187.44,24.60306003]
[1730990123710,24.60306003,187.47,187.41,24.60306003]
[1730990123907,24.60306003,187.45,187.39,24.60306003]
[1730990124604,15.7382,187.47,187.38,24.60306003]
[1730990124605,24.60306003,187.44,187.38,24.60306003]
[1730990124809,24.60306003,187.45,187.39,24.60306003]
[1730990125222,44.60306003,187.44,187.38,24.60306003]
[1730990125520,24.60306003,187.43,187.37,24.60306003]
[1730990126397,20.0,187.42,187.37,24.60306003]
[1730990126711,44.60306003,187.42,187.36,24.60306003]
[1730990126896,24.60306003,187.43,187.37,24.60306003]
[1730990127390,24.60306003,187.43,187.36,24.60306003]
[1730990127590,24.60306003,187.42,187.36,24.60306003]
[1730990128196,24.60306003,187.45,187.39,24.60306003]
[1730990128424,24.60306003,187.46,187.39,24.60306003]
[1730990128596,24.60306003,187.46,187.4,24.60306003]
[1730990128912,40.34126003,187.47,187.41,24.60306003]
[1730990129094,15.7382,187.47,187.42,24.60306003]
[1730990129291,24.60306003,187.5,187.44,24.60306003]
[1730990129495,24.60306003,187.51,187.45,24.60306003]
[1730990129718,46.43696003,187.52,187.46,24.60306003]
[1730990130707,21.8339,187.52,187.47,24.60306003]
[1730990130906,15.3357,187.52,187.47,24.60306003]
[1730990131113,24.60306003,187.56,187.5,24.60306003]
[1730990131299,31.13846003,187.57,187.51,24.60306003]
[1730990131709,15.4246,187.58,187.52,24.60306003]
[1730990131710,40.02766003,187.58,187.52,24.60306003]
[1730990131896,40.02766003,187.58,187.54,24.60306003]
[1730990131897,15.4246,187.58,187.54,24.60306003]
[1730990132098,15.4246,187.58,187.53,24.60306003]
[1730990132292,24.60306003,187.6,187.53,24.60306003]
[1730990132608,24.60306003,187.6,187.54,24.60306003]
[1730990132809,16.2268,187.63,187.48,23.902374]
[1730990132810,40.82986003,187.63,187.57,24.60306003]
[1730990133121,24.60306003,187.62,187.55,24.60306003]
[1730990133417,24.60306003,187.6,187.54,24.60306003]
[1730990133715,24.60306003,187.62,187.56,24.60306003]
[1730990134091,16.2268,187.63,187.57,24.60306003]
[1730990134595,40.82986003,187.63,187.57,24.60306003]
[1730990134798,24.60306003,187.66,187.6,24.60306003]
[1730990135021,6.2703,187.67,187.56,24.60306003]
[1730990135022,6.2703,187.67,187.61,24.60306003]
[1730990135407,16.5761,187.69,187.64,24.60306003]
[1730990135598,24.60306003,187.71,187.65,24.60306003]
[1730990135798,24.60306003,187.71,187.64,24.60306003]
[1730990136122,6.1086,187.73,187.65,24.60306003]
[1730990136123,24.60306003,187.72,187.65,24.60306003]
[1730990136528,6.1086,187.73,187.68,24.60306003]
[1730990136817,24.60306003,187.77,187.71,24.60306003]
[1730990137021,24.60306003,187.8,187.73,24.60306003]
[1730990137417,24.60306003,187.78,187.71,24.60306003]
[1730990137904,24.60306003,187.8,187.73,24.60306003]
[1730990138099,24.60306003,187.8,187.74,24.60306003]
[1730990138429,24.60306003,187.77,187.71,24.60306003]
[1730990138604,24.60306003,187.75,187.68,24.60306003]
[1730990138795,0.12549,187.8,187.69,24.60306003]
[1730990139001,24.60306003,187.72,187.66,24.60306003]
[1730990139299,24.60306003,187.72,187.65,24.60306003]
[1730990139495,24.60306003,187.72,187.66,24.60306003]
[1730990139708,24.60306003,187.73,187.66,24.60306003]
[1730990139920,24.60306003,187.72,187.66,24.60306003]
[1730990140122,24.60306003,187.7,187.63,24.60306003]
[1730990140325,24.60306003,187.68,187.55,0.2]
[1730990140622,20.0,187.69,187.64,24.60306003]
[1730990141008,24.60306003,187.68,187.62,24.60306003]
[1730990141335,24.60306003,187.67,187.6,24.60306003]
[1730990141525,24.60306003,187.68,187.61,24.60306003]
[1730990141819,24.60306003,187.69,187.63,24.60306003]
[1730990142208,24.60306003,187.67,187.6,24.60306003]
[1730990142624,24.60306003,187.68,187.61,24.60306003]
[1730990142828,24.60306003,187.69,187.63,24.60306003]
[1730990143115,44.60306003,187.7,187.63,24.60306003]
[1730990143322,30.96196003,187.71,187.64,24.60306003]
[1730990143531,24.60306003,187.7,187.64,24.60306003]
[1730990143703,24.60306003,187.69,187.62,24.60306003]
[1730990144419,24.60306003,187.68,187.62,24.60306003]
[1730990144823,24.60306003,187.69,187.62,24.60306003]
[1730990146338,24.60306003,187.67,187.61,24.60306003]
[1730990146530,24.60306003,187.67,187.6,24.60306003]
[1730990146749,24.60306003,187.63,187.56,24.60306003]
[1730990147038,24.60306003,187.62,187.56,24.60306003]
[1730990147325,20.0,187.65,187.59,24.60306003]
[1730990147518,24.60306003,187.66,187.6,24.60306003]
[1730990147725,24.60306003,187.66,187.61,24.60306003]
[1730990147929,44.60306003,187.67,187.61,24.60306003]
[1730990148138,24.60306003,187.66,187.59,24.60306003]
[1730990148917,44.60306003,187.67,187.6,24.60306003]
[1730990149118,44.60306003,187.67,187.61,24.60306003]
[1730990149512,24.60306003,187.68,187.61,24.60306003]
[1730990149715,24.60306003,187.69,187.62,24.60306003]
[1730990150226,24.60306003,187.68,187.62,24.60306003]
[1730990150532,24.60306003,187.69,187.62,24.60306003]
[1730990150919,24.60306003,187.68,187.61,185.20306003]
[1730990151542,24.60306003,187.68,187.62,24.60306003]
[1730990151919,24.60306003,187.68,187.61,185.20306003]
[1730990152322,24.60306003,187.68,187.62,24.60306003]
[1730990152633,24.60306003,187.68,187.62,185.20306003]
[1730990153134,24.60306003,187.69,187.63,24.60306003]
[1730990153341,24.60306003,187.68,187.62,185.20306003]
[1730990153730,24.60306003,187.69,187.63,24.60306003]
[1730990154243,24.60306003,187.68,187.62,185.20306003]
[1730990154948,24.60306003,187.69,187.63,24.60306003]
[1730990155132,40.09386003,187.7,187.64,24.60306003]
[1730990155337,40.09386003,187.7,187.64,185.20306003]
[1730990155520,24.60306003,187.69,187.64,160.6]
[1730990156722,40.09386003,187.7,187.64,160.6]
[1730990157540,24.60306003,187.69,187.64,160.6]
[1730990157748,24.60306003,187.72,187.65,24.60306003]
[1730990158042,40.94786003,187.75,187.69,24.60306003]
[1730990158241,16.3448,187.75,187.69,185.20306003]
[1730990158857,40.94786003,187.75,187.69,185.20306003]
[1730990159232,16.3448,187.75,187.7,24.60306003]
[1730990159546,24.60306003,187.77,187.71,24.60306003]
[1730990159842,22.1943,187.8,187.71,24.60306003]
[1730990160026,24.60306003,187.77,187.71,24.60306003]
[1730990160339,24.60306003,187.75,187.66,23.902374]
[1730990160526,24.60306003,187.73,187.66,24.60306003]
[1730990160941,24.60306003,187.71,187.65,24.60306003]
[1730990161824,24.60306003,187.7,187.64,24.60306003]
[1730990162425,24.60306003,187.67,187.61,24.60306003]
[1730990162748,24.60306003,187.65,187.59,24.60306003]
[1730990163055,24.60306003,187.66,187.6,24.60306003]
[1730990163435,24.60306003,187.65,187.59,24.60306003]
[1730990164331,24.60306003,187.68,187.62,24.60306003]
[1730990164644,24.60306003,187.65,187.59,24.60306003]
[1730990165948,27.8371,187.69,187.6,24.60306003]
[1730990165949,24.60306003,187.66,187.6,24.60306003]
[1730990166757,27.8371,187.69,187.59,24.60306003]
[1730990166758,24.60306003,187.65,187.59,24.60306003]
[1730990167131,24.60306003,187.65,187.59,185.20306003]
[1730990167336,24.60306003,187.64,187.59,160.6]
[1730990167536,24.60306003,187.64,187.58,24.60306003]
[1730990167537,24.60306003,187.62,187.58,160.6]
[1730990167743,24.60306003,187.59,187.53,24.60306003]
[1730990167943,24.60306003,187.57,187.53,160.6]
[1730990168151,24.60306003,187.56,187.53,160.6]
[1730990168947,24.60306003,187.54,187.5,160.6]
[1730990169159,24.60306003,187.55,187.48,185.20306003]
[1730990169331,24.60306003,187.56,187.5,24.60306003]
[1730990169530,24.60306003,187.57,187.51,24.60306003]
[1730990169839,30.89776003,187.58,187.51,24.60306003]
[1730990170041,24.60306003,187.62,187.56,24.60306003]
[1730990170239,6.0047,187.63,187.59,24.60306003]
[1730990170956,16.3592,187.65,187.6,24.60306003]
[1730990171732,16.3592,187.65,187.61,24.72855003]
[1730990171938,15.5726,187.7,187.64,24.60306003]
[1730990172170,15.5726,187.7,187.65,24.60306003]
[1730990173056,30.83156003,187.73,187.67,24.60306003]
[1730990173254,24.60306003,187.75,187.68,24.72855003]
[1730990173553,30.72096003,187.78,187.71,24.60306003]
[1730990173728,30.72096003,187.78,187.72,24.60306003]
[1730990173934,6.1179,187.78,187.73,24.60306003]
[1730990174250,16.1697,187.81,187.76,24.60306003]
[1730990174634,40.77276003,187.81,187.75,24.60306003]
[1730990175255,24.60306003,187.8,187.74,24.60306003]
[1730990175431,16.1697,187.81,187.75,24.60306003]
[1730990175953,40.77276003,187.81,187.75,24.60306003]
[1730990176247,5.3229,187.87,187.75,24.60306003]
[1730990176248,24.60306003,187.82,187.75,24.60306003]
[1730990176453,24.60306003,187.82,187.76,24.60306003]
[1730990177164,24.60306003,187.8,187.74,24.60306003]
[1730990177338,24.60306003,187.79,187.73,24.60306003]
[1730990178555,24.60306003,187.8,187.74,24.60306003]
[1730990179151,24.60306003,187.83,187.77,24.60306003]
[1730990179344,20.0,187.83,187.77,24.60306003]
[1730990180834,24.60306003,187.86,187.8,24.72855003]
[1730990181039,24.60306003,187.9,187.84,24.60306003]
[1730990181239,24.60306003,187.91,187.85,24.60306003]
[1730990181949,24.60306003,187.92,187.86,24.60306003]
[1730990182145,24.60306003,187.91,187.85,24.60306003]
[1730990182942,24.60306003,187.92,187.86,24.60306003]
[1730990183137,15.5548,187.94,187.89,24.60306003]
[1730990183652,24.60306003,187.92,187.86,24.60306003]
[1730990183863,24.60306003,187.89,187.83,24.60306003]
[1730990184047,20.9757,187.94,187.79,160.6]
[1730990184351,24.60306003,187.83,187.74,160.6]
[1730990184948,24.60306003,187.85,187.79,24.60306003]
[1730990185140,24.60306003,187.84,187.78,24.60306003]
[1730990185344,24.60306003,187.83,187.77,24.60306003]
[1730990186058,5.3231,187.86,187.74,24.60306003]
[1730990186059,24.60306003,187.8,187.74,24.60306003]
[1730990186366,24.60306003,187.78,187.71,24.60306003]
[1730990186561,16.3622,187.82,187.71,24.60306003]
[1730990186562,24.60306003,187.77,187.71,24.60306003]
[1730990186748,24.60306003,187.78,187.71,24.60306003]
[1730990186945,24.60306003,187.8,187.74,24.60306003]
[1730990187260,16.3622,187.82,187.77,24.60306003]
[1730990187557,24.60306003,187.83,187.77,24.60306003]
[1730990187956,24.60306003,187.85,187.79,24.60306003]
[1730990188340,31.21306003,187.87,187.8,24.60306003]
[1730990188658,31.21306003,187.87,187.81,24.60306003]
[1730990189040,24.60306003,187.84,187.81,160.6]
[1730990189246,24.60306003,187.83,187.81,160.6]
[1730990189442,24.60306003,187.82,187.77,160.6]
[1730990189757,24.60306003,187.84,187.77,185.20306003]
[1730990189939,11.9328,187.87,187.77,185.20306003]